bitfinex-derivatives/quotes_BTCF0:USTF0_20250320
["timestamp","ask_amount","ask_price","bid_price","bid_amount"]
[1742493776070,0.1189071,84148.0,84147.0,0.00177818]
[1742493776274,0.1189071,84148.0,84147.0,0.00217818]
[1742493776675,0.1689071,84148.0,84147.0,0.00217818]
[1742493777265,0.2189071,84148.0,84147.0,0.00217818]
[1742493777976,0.2189071,84148.0,84147.0,0.00117818]
[1742493778670,0.2199071,84148.0,84147.0,0.00117818]
[1742493779279,0.2209071,84148.0,84147.0,0.00017818]
[1742493779478,0.3209071,84148.0,84147.0,0.00017818]
[1742493780179,0.2527071,84148.0,84147.0,0.00017818]
[1742493780365,0.052,84148.0,84147.0,0.11908668]
[1742493780775,0.02,84160.0,84159.0,0.1188916]
[1742493780976,0.00017818,84163.0,84162.0,0.1188873]
[1742493781178,0.1782837,84186.0,84185.0,0.1782808]
[1742493781370,0.00140001,84187.0,84186.0,0.1782797]
[1742493781570,0.1528133,84205.0,84192.0,0.0594219]
[1742493781571,0.1188301,84203.0,84192.0,0.0594219]
[1742493781770,0.05392829,84209.0,84205.0,0.059413]
[1742493781968,0.38724201,84214.0,84213.0,0.1188153]
[1742493782174,0.00140001,84224.0,84223.0,0.1188012]
[1742493782373,0.3608,84256.0,84237.0,0.1187815]
[1742493782672,0.21477158,84238.0,84236.0,0.3608]
[1742493782877,0.21477158,84238.0,84220.0,0.3608]
[1742493782878,0.1187914,84230.0,84229.0,7e-08]
[1742493783076,0.3873914,84230.0,84229.0,7e-08]
[1742493783280,0.1188252,84206.0,84203.0,0.2374266]
[1742493783479,0.1188252,84206.0,84203.0,0.12764421]
[1742493783480,0.118828,84204.0,84203.0,0.12764421]
[1742493783679,0.118828,84204.0,84198.0,0.3608]
[1742493783680,0.1188351,84199.0,84198.0,0.3608]
[1742493783871,0.1188351,84199.0,84198.0,0.373707]
[1742493784070,0.1188351,84199.0,84198.0,0.4796365]
[1742493784580,0.1188393,84196.0,84195.0,0.0089871]
[1742493784784,0.1188464,84191.0,84190.0,0.11902197]
[1742493785077,0.1188464,84191.0,84190.0,0.11902587]
[1742493785270,0.1188464,84191.0,84190.0,0.00017807]
[1742493786186,0.1688464,84191.0,84190.0,0.00017807]
[1742493786785,0.1698464,84191.0,84190.0,0.00017807]
[1742493787277,0.5306464,84191.0,84190.0,0.00017807]
[1742493788685,0.6306464,84191.0,84190.0,0.00017807]
[1742493789271,0.6306464,84191.0,84190.0,7e-08]
[1742493789978,0.6806464,84191.0,84190.0,7e-08]
[1742493791582,0.6553464,84191.0,84190.0,7e-08]
[1742493791772,0.6806464,84191.0,84190.0,7e-08]
[1742493792877,0.6603464,84191.0,84190.0,7e-08]
[1742493793079,0.6242464,84191.0,84190.0,7e-08]
[1742493793284,0.8042064,84191.0,84190.0,7e-08]
[1742493793682,0.8976064,84191.0,84190.0,7e-08]
[1742493794481,0.8476064,84191.0,84190.0,7e-08]
[1742493795488,0.7488064,84191.0,84190.0,7e-08]
[1742493795686,0.8476064,84191.0,84190.0,7e-08]
[1742493795896,0.7800064,84191.0,84190.0,7e-08]
[1742493796185,0.8233064,84191.0,84190.0,7e-08]
[1742493796382,0.8486064,84191.0,84190.0,7e-08]
[1742493797783,0.8986064,84191.0,84190.0,7e-08]
[1742493798687,0.7810064,84191.0,84190.0,7e-08]
[1742493798877,0.4264064,84191.0,84190.0,7e-08]
[1742493799284,0.4263064,84191.0,84190.0,7e-08]
[1742493800483,0.4265064,84191.0,84190.0,7e-08]
[1742493800685,0.4233064,84191.0,84190.0,7e-08]
[1742493800882,0.4243064,84191.0,84190.0,7e-08]
[1742493801079,0.0984,84191.0,84190.0,0.11884787]
[1742493801290,0.2172464,84191.0,84190.0,0.11884787]
[1742493801486,0.1188462,84196.0,84195.0,0.2376745]
[1742493801786,0.2374062,84196.0,84195.0,0.0594192]
[1742493802495,0.2384062,84196.0,84195.0,0.0594192]
[1742493802796,0.1198462,84196.0,84195.0,0.0594192]
[1742493802994,0.0594207,84195.0,84190.0,0.11884737]
[1742493803192,0.1188464,84191.0,84190.0,0.11884787]
[1742493803591,0.2374064,84191.0,84190.0,0.11884787]
[1742493803987,0.4513064,84191.0,84190.0,7e-08]
[1742493804307,0.5195064,84191.0,84190.0,7e-08]
[1742493804497,0.5695064,84191.0,84190.0,7e-08]
[1742493804997,0.4695064,84191.0,84190.0,7e-08]
[1742493806792,0.5195064,84191.0,84190.0,7e-08]
[1742493809891,0.6195064,84191.0,84190.0,7e-08]
[1742493810095,0.5583064,84191.0,84190.0,7e-08]
[1742493810400,0.5581064,84191.0,84190.0,7e-08]
[1742493812195,0.3745464,84191.0,84190.0,7e-08]
[1742493812397,0.3509464,84191.0,84190.0,7e-08]
[1742493812596,0.4195064,84191.0,84190.0,0.49268886]
[1742493812799,0.0904,84191.0,84190.0,0.49268886]
[1742493813103,0.2115379,84197.0,84196.0,0.1782585]
[1742493813294,0.2115379,84197.0,84196.0,0.19129949]
[1742493813490,0.36140001,84220.0,84206.0,0.1188252]
[1742493813690,0.242808,84215.0,84214.0,0.1188139]
[1742493813896,0.3608,84220.0,84219.0,0.1188069]
[1742493814100,0.118806,84220.0,84219.0,0.49264789]
[1742493814399,0.118806,84220.0,84219.0,0.13183807]
[1742493814600,0.209506,84220.0,84219.0,0.01303117]
[1742493814901,0.384606,84220.0,84219.0,0.01303117]
[1742493815099,0.452206,84220.0,84219.0,0.01303117]
[1742493815504,0.452206,84220.0,84213.0,0.3608]
[1742493815505,0.1188139,84214.0,84213.0,0.3608]
[1742493815701,0.2188139,84214.0,84213.0,0.37381118]
[1742493815903,0.4044139,84214.0,84213.0,0.37381118]
[1742493816096,0.3430139,84214.0,84213.0,0.37381118]
[1742493816404,0.4615739,84214.0,84213.0,0.3608]
[1742493816804,0.1188167,84212.0,84211.0,0.00017807]
[1742493817000,0.2188167,84212.0,84211.0,0.00017807]
[1742493817202,0.1188266,84205.0,84204.0,0.21170318]
[1742493817390,0.6494466,84205.0,84204.0,0.21170318]
[1742493817597,0.8372466,84205.0,84204.0,0.21170318]
[1742493817796,0.7372466,84205.0,84204.0,0.21170318]
[1742493818303,0.1188337,84200.0,84199.0,0.28227091]
[1742493818503,0.1688337,84200.0,84199.0,0.28227091]
[1742493818805,0.2642337,84200.0,84199.0,0.28227091]
[1742493819002,0.27921337,84200.0,84199.0,0.28227091]
[1742493819207,0.1188379,84197.0,84196.0,0.00017807]
[1742493819407,0.6481579,84197.0,84196.0,0.00017807]
[1742493819591,0.7435579,84197.0,84196.0,0.00017807]
[1742493820703,0.6250379,84197.0,84196.0,0.00017807]
[1742493821006,0.3327979,84197.0,84196.0,0.01322076]
[1742493821307,0.3327979,84197.0,84196.0,0.13206006]
[1742493821698,0.3327979,84197.0,84196.0,0.29536006]
[1742493822095,0.3827979,84197.0,84196.0,0.00017807]
[1742493822299,0.1782942,84181.0,84180.0,0.1188605]
[1742493822504,0.1782942,84181.0,84180.0,0.13191179]
[1742493822701,0.1782942,84181.0,84180.0,0.13191319]
[1742493823094,0.1782942,84181.0,84180.0,0.29521319]
[1742493823303,0.1782942,84181.0,84180.0,0.2821619]
[1742493824996,0.1782942,84181.0,84180.0,0.0917]
[1742493825201,0.2792942,84181.0,84180.0,0.0917]
[1742493825396,0.1792942,84181.0,84180.0,0.0917]
[1742493825708,0.2792942,84181.0,84180.0,0.0917]
[1742493827212,0.1792942,84181.0,84180.0,0.2105619]
[1742493827708,0.2792942,84181.0,84180.0,0.0917]
[1742493828201,0.1792942,84181.0,84180.0,0.2105619]
[1742493828408,0.2792942,84181.0,84180.0,0.0917]
[1742493829297,0.2178942,84181.0,84180.0,0.0917]
[1742493829498,0.001,84181.0,84180.0,0.2105619]
[1742493829804,0.001,84181.0,84180.0,0.2928619]
[1742493830406,0.1198605,84181.0,84180.0,0.2928619]
[1742493831112,0.1188605,84181.0,84180.0,0.2938619]
[1742493831415,0.1188605,84181.0,84180.0,0.2958619]
[1742493831610,0.1188605,84181.0,84180.0,0.2948619]
[1742493831814,0.1188605,84181.0,84180.0,0.2958619]
[1742493832013,0.1782784,84188.0,84187.0,0.118852]
[1742493832207,0.0594213,84194.0,84188.0,0.1188506]
[1742493832406,0.11902737,84189.0,84188.0,0.2971506]
[1742493833314,0.00017817,84189.0,84188.0,0.2971506]
[1742493833502,0.11902737,84189.0,84188.0,0.2971506]
[1742493833705,0.00017817,84189.0,84188.0,0.2971506]
[1742493834305,0.11902737,84189.0,84188.0,0.2971506]
[1742493835014,0.00017817,84189.0,84188.0,0.6579506]
[1742493835309,0.2136343,84204.0,84203.0,0.1782426]
[1742493835706,0.3715501,84204.0,84203.0,0.1782426]
[1742493836217,0.2527158,84204.0,84203.0,0.1782426]
[1742493837308,0.2557158,84204.0,84203.0,0.1782426]
[1742493837615,0.003,84204.0,84203.0,0.1782426]
[1742493837807,0.003,84204.0,84203.0,0.2967626]
[1742493838114,0.00017817,84212.0,84211.0,0.1188182]
[1742493838317,0.00017817,84212.0,84211.0,0.5981382]
[1742493838508,0.11899487,84212.0,84211.0,0.5981382]
[1742493839813,0.11899487,84212.0,84211.0,0.3608]
[1742493840017,0.31389487,84212.0,84211.0,0.3608]
[1742493840619,0.0594098,84211.0,84208.0,0.11852]
[1742493840921,0.118821,84209.0,84208.0,0.237342]
[1742493841311,0.311621,84209.0,84208.0,0.237342]
[1742493842319,0.0594112,84208.0,84204.0,0.0594133]
[1742493842618,0.1188266,84205.0,84204.0,0.1782385]
[1742493843024,0.3121266,84205.0,84204.0,0.1782385]
[1742493844517,0.3121266,84205.0,84204.0,0.0594133]
[1742493845114,0.118828,84204.0,84203.0,0.3608]
[1742493845319,0.118828,84204.0,84203.0,0.4796294]
[1742493845519,0.317628,84204.0,84203.0,0.4796294]
[1742493845720,0.317628,84204.0,84203.0,0.1188294]
[1742493845914,0.1188393,84196.0,84195.0,0.00017817]
[1742493846120,0.1188393,84196.0,84195.0,0.11901887]
[1742493846315,0.3137393,84196.0,84195.0,0.00017817]
[1742493846515,0.3125393,84196.0,84195.0,0.00017817]
[1742493846713,0.4125393,84196.0,84195.0,0.00017817]
[1742493846922,0.3125393,84196.0,84195.0,0.00017817]
[1742493847223,0.4125393,84196.0,84195.0,0.00017817]
[1742493847816,0.42669663,84196.0,84195.0,0.00017817]
[1742493848623,0.36589663,84196.0,84195.0,0.00017817]
[1742493848928,0.42669663,84196.0,84195.0,0.00017817]
[1742493849131,0.36529663,84196.0,84195.0,0.00017817]
[1742493849333,0.47669663,84196.0,84195.0,0.00017817]
[1742493849917,0.3625393,84196.0,84195.0,0.00017817]
[1742493850525,0.1937,84196.0,84195.0,0.11901887]
[1742493851024,0.0943,84196.0,84195.0,0.11901887]
[1742493852029,0.0943,84196.0,84195.0,0.20131887]
[1742493852632,0.0919,84205.0,84204.0,0.118828]
[1742493853726,0.2107266,84205.0,84204.0,0.214128]
[1742493854022,0.1188309,84202.0,84201.0,0.3608]
[1742493854337,0.1188379,84197.0,84195.0,0.00017817]
[1742493854520,0.2186393,84196.0,84195.0,0.00017817]
[1742493854722,0.3144393,84196.0,84195.0,0.00017817]
[1742493854925,0.3144393,84196.0,84195.0,0.11901887]
[1742493855233,0.1956,84196.0,84195.0,0.11901887]
[1742493855532,0.3144393,84196.0,84195.0,0.11901887]
[1742493855727,0.3144393,84196.0,84195.0,0.21931887]
[1742493855927,0.3144393,84196.0,84195.0,0.58011887]
[1742493856133,0.3144393,84196.0,84195.0,0.21931887]
[1742493856721,0.3144393,84196.0,84195.0,0.58011887]
[1742493857230,0.3144393,84196.0,84195.0,0.21931887]
[1742493857433,0.3144393,84196.0,84195.0,0.58011887]
[1742493859423,0.3144393,84196.0,84195.0,0.47981887]
[1742493861233,0.3144393,84196.0,84195.0,0.00017817]
[1742493861435,0.3156393,84196.0,84195.0,0.00017817]
[1742493861622,0.1188506,84188.0,84175.0,0.0982]
[1742493862029,0.3139506,84188.0,84184.0,0.1188559]
[1742493862234,0.3139506,84188.0,84185.0,0.1188544]
[1742493862434,0.2139506,84188.0,84184.0,0.01433128]
[1742493863432,0.2139506,84188.0,84187.0,0.118852]
[1742493863936,0.3324706,84188.0,84187.0,0.118852]
[1742493864636,0.1188549,84185.0,84184.0,0.49398618]
[1742493864836,0.1188549,84185.0,84184.0,0.37513128]
[1742493865041,0.3171549,84185.0,84184.0,0.37513128]
[1742493865432,0.3171549,84185.0,84184.0,0.49398758]
[1742493865944,0.3171549,84185.0,84184.0,0.49498758]
[1742493866144,0.3171549,84185.0,84184.0,0.37613128]
[1742493866331,0.3171549,84185.0,84184.0,0.49498758]
[1742493866530,0.3171549,84185.0,84184.0,0.49598758]
[1742493866938,0.3171549,84185.0,84184.0,0.37713128]
[1742493867142,0.3171549,84185.0,84184.0,0.002]
[1742493867733,0.3171549,84185.0,84184.0,0.4816563]
[1742493868137,0.1983,84185.0,84184.0,0.4816563]
[1742493868328,0.0952,84185.0,84184.0,0.5848563]
[1742493868532,0.0952,84185.0,84184.0,0.6801563]
[1742493869140,0.0952,84185.0,84184.0,0.6791563]
[1742493869728,0.099,84190.0,84189.0,0.1782737]
[1742493870535,0.0594256,84188.0,84184.0,0.465]
[1742493870740,0.1782817,84186.0,84185.0,0.1188534]
[1742493871037,0.1782817,84186.0,84184.0,0.5254271]
[1742493871038,0.1188549,84185.0,84184.0,0.3628]
[1742493871234,0.3210549,84185.0,84184.0,0.3618]
[1742493872540,0.3210549,84185.0,84184.0,0.4796563]
[1742493873135,0.3210549,84185.0,84184.0,0.1188563]
[1742493873331,0.1188619,84180.0,84179.0,0.00017817]
[1742493873539,0.2688619,84180.0,84179.0,0.00017817]
[1742493873745,0.4720619,84180.0,84179.0,0.00017817]
[1742493873933,0.3720619,84180.0,84179.0,0.00017817]
[1742493874340,0.4720619,84180.0,84179.0,0.00017817]
[1742493874731,0.1188831,84165.0,84150.0,0.11852]
[1742493874938,0.3374031,84165.0,84159.0,0.00898616]
[1742493875253,0.3374031,84165.0,84158.0,0.1188917]
[1742493875254,0.4795031,84165.0,84162.0,0.1188867]
[1742493875541,0.5409031,84165.0,84163.0,0.1188856]
[1742493875734,0.5409031,84165.0,84160.0,0.0594449]
[1742493875935,0.5409031,84165.0,84160.0,0.1783347]
[1742493876533,0.1200887,84161.0,84160.0,0.0594449]
[1742493876735,0.1188944,84157.0,84156.0,0.00011917]
[1742493876940,0.2188944,84157.0,84156.0,0.00011917]
[1742493877142,0.4391144,84157.0,84156.0,0.00011917]
[1742493877648,0.4891144,84157.0,84156.0,0.00011917]
[1742493877849,0.5863144,84157.0,84156.0,0.00011917]
[1742493879450,0.5249144,84157.0,84156.0,0.11901497]
[1742493879648,0.4375144,84157.0,84156.0,0.11901497]
[1742493879952,0.4375144,84157.0,84156.0,0.00011917]
[1742493879953,0.5363144,84157.0,84156.0,0.00011917]
[1742493883039,0.5863144,84157.0,84156.0,0.00011917]
[1742493883746,0.5249144,84157.0,84156.0,0.00011917]
[1742493883951,0.5863144,84157.0,84156.0,0.00011917]
[1742493884351,0.1189184,84140.0,84139.0,0.5391737]
[1742493884646,0.1189184,84140.0,84139.0,0.61299842]
[1742493885646,0.1189184,84140.0,84139.0,0.37816582]
[1742493885841,0.1189184,84140.0,84139.0,0.3638]
[1742493886046,0.3127184,84140.0,84139.0,0.4827198]
[1742493886550,0.3127184,84140.0,84139.0,0.49924657]
[1742493887149,0.3127184,84140.0,84139.0,0.005]
[1742493887350,0.3627184,84140.0,84139.0,0.005]
[1742493889458,0.4627184,84140.0,84139.0,0.005]
[1742493890058,0.3627184,84140.0,84139.0,0.005]
[1742493890247,0.4627184,84140.0,84139.0,0.005]
[1742493890849,0.3627184,84140.0,84139.0,0.005]
[1742493891253,0.4627184,84140.0,84139.0,0.005]
[1742493891859,0.3627184,84140.0,84139.0,0.1239198]
[1742493892862,0.3627184,84140.0,84139.0,0.005]
[1742493893065,0.4627184,84140.0,84139.0,0.005]
[1742493894061,0.1189368,84127.0,84125.0,0.3608]
[1742493894266,0.3194382,84126.0,84125.0,0.3608]
[1742493894865,0.3194382,84126.0,84125.0,0.37433825]
[1742493895264,0.3194382,84126.0,84125.0,0.3668]
[1742493895660,0.3194382,84126.0,84125.0,0.3728]
[1742493897070,0.3194382,84126.0,84125.0,0.4917396]
[1742493897363,0.3194382,84126.0,84125.0,0.3728]
[1742493897967,0.3194382,84126.0,84125.0,0.012]
[1742493899262,0.1189495,84118.0,84117.0,0.3608]
[1742493899659,0.3072495,84118.0,84117.0,0.37442093]
[1742493900258,0.3072495,84118.0,84117.0,0.01362093]
[1742493900458,0.3072495,84118.0,84109.0,0.4202808]
[1742493900459,0.1189693,84104.0,84103.0,0.00064]
[1742493900659,0.1189722,84102.0,84101.0,0.0974]
[1742493900959,0.1189736,84101.0,84100.0,0.1]
[1742493901158,0.3193736,84101.0,84100.0,0.218975]
[1742493902873,0.2004,84101.0,84100.0,0.316375]
[1742493903168,0.1189736,84101.0,84100.0,0.410975]
[1742493903377,0.2970149,84106.0,84105.0,0.1189679]
[1742493903573,0.1780433,84106.0,84105.0,0.1189679]
[1742493903872,0.0594799,84111.0,84108.0,0.1189637]
[1742493904175,0.178036,84117.0,84108.0,0.3162637]
[1742493904372,0.0594762,84116.0,84108.0,0.3162637]
[1742493904569,0.059479,84112.0,84108.0,0.3162637]
[1742493904877,0.11914058,84109.0,84108.0,0.3162637]
[1742493905073,0.11914058,84109.0,84108.0,0.0972]
[1742493905275,0.1189665,84106.0,84105.0,0.4807678]
[1742493905472,0.1189665,84106.0,84105.0,0.5779678]
[1742493905669,0.2189665,84106.0,84105.0,0.0992]
[1742493905974,0.2189665,84106.0,84105.0,0.001]
[1742493906177,0.1189722,84102.0,84101.0,0.2012]
[1742493906369,0.1189722,84102.0,84101.0,0.1011]
[1742493906567,0.3225722,84102.0,84101.0,0.2200736]
[1742493907374,0.4225722,84102.0,84101.0,0.2200736]
[1742493907571,0.1189736,84101.0,84100.0,0.1]
[1742493907774,0.3608,84101.0,84083.0,0.1189979]
[1742493908076,0.1189976,84084.0,84083.0,0.1011]
[1742493908578,0.3212976,84084.0,84083.0,0.1011]
[1742493908883,0.3212976,84084.0,84083.0,0.11498247]
[1742493909675,0.1190047,84079.0,84078.0,0.35283863]
[1742493909876,0.2190047,84079.0,84078.0,0.35283863]
[1742493910080,0.4122047,84079.0,84078.0,0.35283863]
[1742493910275,0.3122047,84079.0,84078.0,0.47184473]
[1742493910581,0.1932,84079.0,84078.0,0.47184473]
[1742493910769,0.3122047,84079.0,84078.0,0.47184473]
[1742493910969,0.3122047,84079.0,84078.0,0.57134473]
[1742493911181,0.3122047,84079.0,84078.0,0.57634473]
[1742493911377,0.4122047,84079.0,84078.0,0.35783863]
[1742493911583,0.5808047,84079.0,84078.0,0.35783863]
[1742493912380,0.5808047,84079.0,84078.0,0.009]
[1742493912584,0.1190245,84065.0,84064.0,0.01412162]
[1742493912779,0.1190288,84062.0,84061.0,0.28343667]
[1742493913087,0.1190288,84062.0,84056.0,0.35283863]
[1742493913088,0.1190358,84057.0,84056.0,0.35283863]
[1742493913383,0.6495758,84057.0,84056.0,0.35283863]
[1742493913873,0.7984758,84057.0,84056.0,0.35283863]
[1742493914076,0.8937758,84057.0,84056.0,0.35283863]
[1742493915484,0.8731758,84057.0,84056.0,0.35283863]
[1742493915672,0.8741758,84057.0,84056.0,0.35283863]
[1742493915873,0.1984543,84044.0,84043.0,0.0945]
[1742493916074,0.3170543,84044.0,84043.0,0.0945]
[1742493916473,0.3376543,84044.0,84043.0,0.0945]
[1742493917079,0.1190689,84034.0,84031.0,0.3608]
[1742493917280,0.1190698,84033.0,84032.0,0.1003]
[1742493918470,0.1190698,84033.0,84032.0,0.21221021]
[1742493919082,0.1190698,84033.0,84032.0,0.20221021]
[1742493920084,0.1190698,84033.0,84032.0,0.20621021]
[1742493920285,0.1190698,84033.0,84032.0,0.32528151]
[1742493921383,0.1190698,84033.0,84032.0,0.20621021]
[1742493921879,0.0595328,84036.0,84032.0,0.20621021]
[1742493922076,0.1190698,84033.0,84032.0,0.20621021]
[1742493922276,0.2190698,84033.0,84032.0,0.20621021]
[1742493922785,0.2190698,84033.0,84032.0,0.0963]
[1742493924079,0.1577698,84033.0,84032.0,0.11042412]
[1742493924282,0.2190698,84033.0,84032.0,0.0963]
[1742493924487,0.2190698,84033.0,84032.0,0.0953]
[1742493924682,0.1202698,84033.0,84032.0,0.0953]
[1742493924878,0.2190698,84033.0,84032.0,0.0953]
[1742493925278,0.5798698,84033.0,84032.0,0.0943]
[1742493925488,0.6797698,84033.0,84032.0,0.0953]
[1742493925684,0.6797698,84033.0,84032.0,0.005]
[1742493929977,0.1190854,84022.0,84021.0,0.0958]
[1742493930175,0.1190854,84022.0,84021.0,0.10456524]
[1742493930386,0.1202854,84022.0,84021.0,0.11852288]
[1742493930590,0.3168854,84022.0,84021.0,0.11852288]
[1742493930887,0.3168854,84022.0,84021.0,0.10975764]
[1742493931282,0.2555854,84022.0,84021.0,0.10975764]
[1742493931484,0.3168854,84022.0,84021.0,0.10975764]
[1742493932391,0.2555854,84022.0,84021.0,0.10975764]
[1742493933780,0.3168854,84022.0,84021.0,0.10975764]
[1742493934091,0.2168854,84022.0,84021.0,0.10975764]
[1742493934388,0.2555854,84022.0,84021.0,0.10975764]
[1742493935283,0.2557854,84022.0,84021.0,0.10975764]
[1742493935489,0.2209854,84022.0,84021.0,0.12269927]
[1742493935783,0.1231854,84022.0,84021.0,0.22699927]
[1742493936193,0.1190854,84022.0,84021.0,0.22699927]
[1742493936984,0.1190854,84022.0,84021.0,0.34608607]
[1742493937785,0.146401,84050.0,84029.0,0.1190755]
[1742493937995,0.0595317,84038.0,84037.0,0.1190628]
[1742493938194,0.0595317,84038.0,84037.0,0.49280443]
[1742493938588,0.1617317,84038.0,84037.0,0.3192628]
[1742493938790,0.1617317,84038.0,84037.0,0.69413111]
[1742493939091,0.1617317,84038.0,84037.0,0.33333111]
[1742493939400,0.1617317,84038.0,84037.0,0.69413111]
[1742493939586,0.1637317,84038.0,84037.0,0.69413111]
[1742493940493,0.1042,84038.0,84037.0,0.69413111]
[1742493940695,0.2232628,84038.0,84037.0,0.69413111]
[1742493940993,0.2242628,84038.0,84037.0,0.69413111]
[1742493942196,0.0991,84038.0,84037.0,0.69413111]
[1742493942496,0.003,84038.0,84037.0,0.69413111]
[1742493942699,0.1220628,84038.0,84037.0,0.69413111]
[1742493943700,0.003,84038.0,84037.0,0.69413111]
[1742493943896,0.0961,84045.0,84044.0,0.1190543]
[1742493943897,0.2151531,84045.0,84044.0,0.1190543]
[1742493944199,0.2151531,84045.0,84044.0,0.4798543]
[1742493944399,0.3169531,84045.0,84044.0,0.6842543]
[1742493944990,0.3764796,84045.0,84044.0,0.6842543]
[1742493946099,0.3794796,84045.0,84044.0,0.6842543]
[1742493947007,0.2009,84045.0,84044.0,0.6842543]
[1742493947299,0.0991,84045.0,84044.0,0.6842543]
[1742493947996,0.2181528,84045.0,84044.0,0.6842543]
[1742493948298,0.3137528,84045.0,84044.0,0.6842543]
[1742493948498,0.3147528,84045.0,84044.0,0.6842543]
[1742493949498,0.0996,84045.0,84044.0,0.6842543]
[1742493950200,0.2186528,84045.0,84044.0,0.6842543]
[1742493951398,0.1190417,84059.0,84058.0,0.0595163]
[1742493951698,0.1008,84062.0,84061.0,0.1190302]
[1742493951900,0.102,84065.0,84063.0,0.1190259]
[1742493952090,0.0595096,84070.0,84069.0,0.0595068]
[1742493953004,0.0995,84075.0,84073.0,0.1190118]
[1742493953005,0.0595065,84074.0,84073.0,0.1190118]
[1742493953194,0.1637065,84074.0,84073.0,0.4798118]
[1742493953506,0.1637065,84074.0,84073.0,0.5823118]
[1742493953902,0.1042,84074.0,84073.0,0.5823118]
[1742493954204,0.2232118,84074.0,84073.0,0.5823118]
[1742493954394,0.1042,84074.0,84073.0,0.59610846]
[1742493954600,0.1191855,84078.0,84077.0,0.1190075]
[1742493954800,0.1191855,84078.0,84077.0,0.2215075]
[1742493955704,0.0001785,84078.0,84077.0,0.24328647]
[1742493955899,0.0051785,84078.0,84077.0,0.24428647]
[1742493956202,0.0101785,84078.0,84077.0,0.60508647]
[1742493956803,0.1189814,84103.0,84077.0,0.48607897]
[1742493957104,0.11864,84106.0,84090.0,0.1189877]
[1742493957105,0.2379868,84091.0,84090.0,0.1189877]
[1742493957404,0.0594945,84091.0,84090.0,0.25059751]
[1742493957802,0.0594926,84093.0,84090.0,0.25059751]
[1742493957993,0.1191574,84099.0,84098.0,0.1189778]
[1742493958199,0.3181574,84099.0,84098.0,0.1189778]
[1742493959005,0.3181574,84099.0,84098.0,0.13190722]
[1742493959201,0.3181574,84099.0,84098.0,0.2223778]
[1742493959506,0.3211574,84099.0,84098.0,0.23573255]
[1742493960601,0.3211574,84099.0,84098.0,0.13233255]
[1742493961709,0.3231574,84099.0,84098.0,0.23153255]
[1742493963798,0.1076784,84099.0,84098.0,0.35013255]
[1742493964000,0.2266548,84099.0,84098.0,0.35013255]
[1742493964506,0.0051784,84099.0,84098.0,0.36302855]
[1742493964709,0.0051784,84099.0,84098.0,0.35013255]
[1742493964900,0.0051784,84099.0,84098.0,0.71093255]
[1742493965207,0.0594737,84120.0,84109.0,0.0594808]
[1742493965510,0.2214415,84124.0,84123.0,0.1189425]
[1742493966210,0.2214415,84124.0,84119.0,0.4794]
[1742493966211,0.0594719,84123.0,84119.0,0.4794]
[1742493966414,0.1189467,84120.0,84119.0,0.1186]
[1742493966613,0.0594726,84121.0,84115.0,0.0001784]
[1742493966906,0.1189651,84107.0,84106.0,0.1186]
[1742493967305,0.1189707,84103.0,84102.0,0.3608]
[1742493967614,0.1189792,84097.0,84096.0,0.00064]
[1742493967803,0.118992,84088.0,84087.0,0.01341459]
[1742493968005,0.118992,84088.0,84087.0,0.1189934]
[1742493968397,0.1189976,84084.0,84083.0,0.1186]
[1742493968913,0.1189976,84084.0,84083.0,0.25123206]
[1742493969116,0.1189976,84084.0,84083.0,0.26025696]
[1742493969608,0.1189976,84084.0,84079.0,0.9236804]
[1742493969609,0.1190033,84080.0,84079.0,0.0001784]
[1742493969813,0.1190061,84078.0,84077.0,0.3608]
[1742493970005,0.1690104,84075.0,84060.0,0.42747276]
[1742493970204,0.1690104,84075.0,84062.0,0.1190284]
[1742493970405,0.1690104,84075.0,84062.0,0.2380565]
[1742493970612,0.1690104,84075.0,84062.0,0.1190281]
[1742493970808,0.1690104,84075.0,84063.0,0.1190268]
[1742493971009,0.1690104,84075.0,84062.0,0.1190281]
[1742493971312,0.1190273,84063.0,84062.0,0.1190281]
[1742493971512,0.1190273,84063.0,84062.0,0.13273453]
[1742493972110,0.2186273,84063.0,84062.0,0.13273453]
[1742493972916,0.2186273,84063.0,84062.0,0.14177639]
[1742493973319,0.2186273,84063.0,84062.0,0.14177709]
[1742493974314,0.2206273,84063.0,84062.0,0.15469469]
[1742493974715,0.3226273,84063.0,84062.0,0.00904186]
[1742493974915,0.3226273,84063.0,84061.0,0.1059]
[1742493974916,0.1190288,84062.0,84061.0,0.1059]
[1742493975310,0.2237288,84062.0,84061.0,0.1059]
[1742493975608,0.2237288,84062.0,84061.0,0.2249302]
[1742493975814,0.2237288,84062.0,84061.0,0.23786099]
[1742493976117,0.2237288,84062.0,84061.0,0.3499846]
[1742493976311,0.2257288,84062.0,84061.0,0.3499846]
[1742493977219,0.002,84062.0,84061.0,0.4685846]
[1742493977517,0.1785182,84074.0,84073.0,0.2380175]
[1742493977717,0.0595064,84074.0,84073.0,0.61174829]
[1742493978020,0.3360168,84078.0,84077.0,0.1190075]
[1742493978222,0.3360168,84078.0,84077.0,0.13193829]
[1742493978918,0.3360168,84078.0,84077.0,0.23213829]
[1742493982421,0.119007,84078.0,84077.0,0.33193829]
[1742493983711,0.119007,84078.0,84077.0,0.33196331]
[1742493985626,0.119007,84078.0,84077.0,0.33196531]
[1742493987218,0.119007,84078.0,84077.0,0.3190075]
[1742493987424,0.119007,84078.0,84077.0,0.33197811]
[1742493987619,0.1018784,84083.0,84082.0,0.1190005]
[1742493987921,0.1189807,84097.0,84096.0,0.1189806]
[1742493988121,0.0594881,84100.0,84099.0,0.1189764]
[1742493988515,0.0594881,84100.0,84099.0,0.32464837]
[1742493988717,0.0594881,84100.0,84099.0,0.32464451]
[1742493988913,0.2798572,84103.0,84102.0,0.1189722]
[1742493989118,0.1014,84103.0,84102.0,0.49274031]
[1742493989318,0.1014,84103.0,84102.0,0.68434031]
[1742493990013,0.2203707,84103.0,84102.0,0.68434031]
[1742493991024,0.1189792,84097.0,84096.0,0.0594899]
[1742493991329,0.1189792,84097.0,84096.0,0.1784645]
[1742493991525,0.1189835,84094.0,84085.0,0.5741758]
[1742493991732,0.1189835,84094.0,84093.0,0.1189849]
[1742493992026,0.2151835,84094.0,84093.0,0.1189849]
[1742493992328,0.3147835,84094.0,84093.0,0.13263132]
[1742493993332,0.3157835,84094.0,84093.0,0.13263132]
[1742493993719,0.1978,84094.0,84093.0,0.13263132]
[1742493993923,0.1978,84094.0,84093.0,0.32283132]
[1742493994422,0.1988,84094.0,84093.0,0.32283132]
[1742493994619,0.002,84094.0,84093.0,0.32283132]
[1742493994825,0.004,84094.0,84093.0,0.41663132]
[1742493995026,0.003,84094.0,84093.0,0.53519132]
[1742493995428,0.001,84094.0,84093.0,0.53519132]
[1742493995627,0.002,84094.0,84093.0,0.53519132]